[Event "*** Titled Tuesday Blitz"]
[Site "Chess.com"]
[Date "2020.11.10"]
[Round "3"]
[White "Kavyev_Ruslan"]
[Black "DonPreuss"]
[Result "0-1"]
[WhiteElo "2392"]
[BlackElo "2234"]
[TimeControl "180+1"]
[EndTime "10:32:01 PST"]
[Termination "DonPreuss won by resignation"]

1. d4 {[%clk 0:03:00.9]} 1... Nc6 {[%clk 0:02:59.4]} 2. e4 {[%clk 0:03:00.5]}
2... e5 {[%clk 0:02:59.4]} 3. d5 {[%clk 0:02:59.5]} 3... Nce7 {[%clk 0:02:59.5]}
4. Nf3 {[%clk 0:03:00.4]} 4... Ng6 {[%clk 0:02:59.6]} 5. Be3 {[%clk 0:03:00.2]}
5... Bb4+ {[%clk 0:02:58.9]} 6. Nbd2 {[%clk 0:02:57.4]} 6... Ba5 {[%clk
0:02:59.1]} 7. c4 {[%clk 0:02:55.7]} 7... Bxd2+ {[%clk 0:02:35.7]} 8. Qxd2
{[%clk 0:02:54.4]} 8... d6 {[%clk 0:02:35.7]} 9. g3 {[%clk 0:02:40.5]} 9... N8e7
{[%clk 0:02:35.3]} 10. Bg2 {[%clk 0:02:37.6]} 10... O-O {[%clk 0:02:34.7]} 11.
O-O {[%clk 0:02:37.9]} 11... f5 {[%clk 0:02:33.2]} 12. Ng5 {[%clk 0:02:36.2]}
12... f4 {[%clk 0:02:31.1]} 13. gxf4 {[%clk 0:02:36.4]} 13... exf4 {[%clk
0:02:31.2]} 14. Bd4 {[%clk 0:02:36.5]} 14... Nh4 {[%clk 0:01:59]} 15. f3 {[%clk
0:02:25.8]} 15... Nxd5 {[%clk 0:01:42.5]} 16. Nxh7 {[%clk 0:02:21.7]} 16... Kxh7
{[%clk 0:01:24.8]} 17. cxd5 {[%clk 0:02:21.1]} 17... Qg5 {[%clk 0:01:24.2]} 18.
Kh1 {[%clk 0:02:21.5]} 18... Bd7 {[%clk 0:01:13.1]} 19. Rac1 {[%clk 0:02:20.8]}
19... Rac8 {[%clk 0:01:11.5]} 20. Rg1 {[%clk 0:02:16.6]} 20... Qh5 {[%clk
0:00:56.7]} 21. Qd3 {[%clk 0:02:08.2]} 21... g6 {[%clk 0:00:50.3]} 22. Rc3
{[%clk 0:01:41.9]} 22... Rf7 {[%clk 0:00:37.5]} 23. Qc2 {[%clk 0:01:34.2]} 23...
c5 {[%clk 0:00:29.1]} 24. dxc6 {[%clk 0:01:32.3]} 24... bxc6 {[%clk 0:00:29.2]}
25. Bxa7 {[%clk 0:01:31.1]} 25... Nxg2 {[%clk 0:00:22.9]} 26. Rxg2 {[%clk
0:01:30.8]} 26... Bh3 {[%clk 0:00:23.6]} 27. Bg1 {[%clk 0:01:16.8]} 27... Bxg2+
{[%clk 0:00:22.9]} 28. Qxg2 {[%clk 0:01:17.7]} 28... c5 {[%clk 0:00:19.1]} 29.
Qd2 {[%clk 0:01:16.3]} 29... Qe5 {[%clk 0:00:18.8]} 30. Rd3 {[%clk 0:01:15.3]}
30... Rd8 {[%clk 0:00:17.5]} 31. Rd5 {[%clk 0:01:15.4]} 31... Qe7 {[%clk
0:00:14.9]} 32. e5 {[%clk 0:01:15]} 32... Rf5 {[%clk 0:00:13.3]} 33. exd6 {[%clk
0:01:14]} 33... Qd7 {[%clk 0:00:12.9]} 34. Rd3 {[%clk 0:00:54.5]} 34... c4
{[%clk 0:00:09.6]} 35. Rd4 {[%clk 0:00:53.7]} 35... Qe6 {[%clk 0:00:07.4]} 36.
a4 {[%clk 0:00:38.4]} 36... g5 {[%clk 0:00:07.8]} 37. a5 {[%clk 0:00:37.6]}
37... Re5 {[%clk 0:00:08.2]} 38. a6 {[%clk 0:00:37.8]} 38... Re2 {[%clk
0:00:08.3]} 39. Qd1 {[%clk 0:00:33.8]} 39... Rxb2 {[%clk 0:00:07.7]} 40. a7
{[%clk 0:00:33.3]} 40... Qh3 {[%clk 0:00:07.6]} 41. Bf2 {[%clk 0:00:12.7]} 41...
Rxf2 {[%clk 0:00:07.1]} 42. Qb1+ {[%clk 0:00:12.4]} 42... Kh6 {[%clk 0:00:06.5]}
0-1

[Event "*** Titled Tuesday Blitz"]
[Site "Chess.com"]
[Date "2020.11.10"]
[Round "3"]
[White "BillCoe"]
[Black "chessmachine14"]
[Result "0-1"]
[WhiteElo "2061"]
[BlackElo "2294"]
[TimeControl "180+1"]
[EndTime "10:32:01 PST"]
[Termination "chessmachine14 won on time"]

1. e4 {[%clk 0:02:56.7]} 1... c5 {[%clk 0:02:57.9]} 2. Nf3 {[%clk 0:02:57.1]}
2... e6 {[%clk 0:02:56.8]} 3. d4 {[%clk 0:02:57]} 3... cxd4 {[%clk 0:02:56.7]}
4. Nxd4 {[%clk 0:02:57.9]} 4... Nf6 {[%clk 0:02:57.1]} 5. Bd3 {[%clk 0:02:57]}
5... Nc6 {[%clk 0:02:55.7]} 6. Nb5 {[%clk 0:02:56.7]} 6... a6 {[%clk 0:02:53.8]}
7. N5c3 {[%clk 0:02:55.7]} 7... Be7 {[%clk 0:02:49]} 8. O-O {[%clk 0:02:56]}
8... O-O {[%clk 0:02:48.8]} 9. Be3 {[%clk 0:02:55.9]} 9... d5 {[%clk 0:02:48.7]}
10. exd5 {[%clk 0:02:46.1]} 10... exd5 {[%clk 0:02:48.7]} 11. Bg5 {[%clk
0:02:42.4]} 11... d4 {[%clk 0:02:35.6]} 12. Bxf6 {[%clk 0:02:32]} 12... Bxf6
{[%clk 0:02:36.5]} 13. Ne4 {[%clk 0:02:32.2]} 13... Bf5 {[%clk 0:02:27.4]} 14.
Nxf6+ {[%clk 0:02:30.9]} 14... Qxf6 {[%clk 0:02:28.3]} 15. Bxf5 {[%clk
0:02:24.2]} 15... Qxf5 {[%clk 0:02:29.2]} 16. Nd2 {[%clk 0:02:23.2]} 16... d3
{[%clk 0:02:25.2]} 17. cxd3 {[%clk 0:02:21.1]} 17... Qxd3 {[%clk 0:02:26.1]} 18.
Nf3 {[%clk 0:02:19]} 18... Qg6 {[%clk 0:02:16.5]} 19. Rc1 {[%clk 0:02:10.3]}
19... Rad8 {[%clk 0:02:16.1]} 20. Qc2 {[%clk 0:02:08.6]} 20... Rd3 {[%clk
0:02:12]} 21. Qe2 {[%clk 0:01:51.9]} 21... Nb4 {[%clk 0:01:57]} 22. a3 {[%clk
0:01:37.9]} 22... Nd5 {[%clk 0:01:44.1]} 23. Rc4 {[%clk 0:01:10.3]} 23... Rb3
{[%clk 0:01:31.6]} 24. Qe5 {[%clk 0:00:39]} 24... Nb6 {[%clk 0:01:11.5]} 25. Rb4
{[%clk 0:00:33.7]} 25... Rxf3 {[%clk 0:01:09.7]} 26. Rxb6 {[%clk 0:00:27.3]}
26... Qxb6 {[%clk 0:01:07.4]} 27. gxf3 {[%clk 0:00:27.3]} 27... Qc6 {[%clk
0:01:03]} 28. Kg2 {[%clk 0:00:22.7]} 28... Re8 {[%clk 0:01:01.9]} 29. Qf4 {[%clk
0:00:19.3]} 29... h6 {[%clk 0:00:58.9]} 30. Rc1 {[%clk 0:00:19]} 30... Qg6+
{[%clk 0:00:54]} 31. Qg3 {[%clk 0:00:17.6]} 31... Qb6 {[%clk 0:00:53.1]} 32. Rc2
{[%clk 0:00:15.3]} 32... Qb5 {[%clk 0:00:49.5]} 33. b4 {[%clk 0:00:10.6]} 33...
Re1 {[%clk 0:00:48.8]} 34. Kh3 {[%clk 0:00:08.7]} 34... Qf1+ {[%clk 0:00:47.6]}
35. Qg2 {[%clk 0:00:07.9]} 35... Qd3 {[%clk 0:00:47.4]} 36. Rc8+ {[%clk
0:00:06.9]} 36... Kh7 {[%clk 0:00:47.2]} 37. Qg4 {[%clk 0:00:05.7]} 37... Qf1+
{[%clk 0:00:39.2]} 38. Qg2 {[%clk 0:00:04.6]} 38... Qd3 {[%clk 0:00:27.3]} 39.
Rc7 {[%clk 0:00:03.7]} 39... Re5 {[%clk 0:00:20.5]} 40. Qg4 {[%clk 0:00:02.2]}
40... Rf5 {[%clk 0:00:20.2]} 0-1

[Event "*** Titled Tuesday Blitz"]
[Site "Chess.com"]
[Date "2020.11.10"]
[Round "3"]
[White "wnstop"]
[Black "Andreikka"]
[Result "1-0"]
[WhiteElo "2721"]
[BlackElo "2957"]
[TimeControl "180+1"]
[EndTime "10:32:03 PST"]
[Termination "wnstop won by resignation"]

1. e4 {[%clk 0:03:00.9]} 1... c6 {[%clk 0:02:55.2]} 2. d4 {[%clk 0:02:59.2]}
2... d5 {[%clk 0:02:55]} 3. e5 {[%clk 0:02:55]} 3... Bf5 {[%clk 0:02:54.7]} 4.
Bd3 {[%clk 0:02:54.4]} 4... Bxd3 {[%clk 0:02:51.5]} 5. Qxd3 {[%clk 0:02:55.3]}
5... e6 {[%clk 0:02:51.1]} 6. Ne2 {[%clk 0:02:55.6]} 6... Qa5+ {[%clk
0:02:43.5]} 7. c3 {[%clk 0:02:54.7]} 7... Qa6 {[%clk 0:02:41.1]} 8. Qd1 {[%clk
0:02:54.3]} 8... Ne7 {[%clk 0:02:39.4]} 9. O-O {[%clk 0:02:52.1]} 9... Nd7
{[%clk 0:02:39.1]} 10. Nd2 {[%clk 0:02:50.4]} 10... Nf5 {[%clk 0:02:36.9]} 11.
Nf3 {[%clk 0:02:49.5]} 11... Be7 {[%clk 0:02:35]} 12. Kh1 {[%clk 0:02:18.9]}
12... c5 {[%clk 0:02:12.4]} 13. g4 {[%clk 0:02:12.8]} 13... Nh4 {[%clk
0:02:10.9]} 14. Nxh4 {[%clk 0:02:12.3]} 14... Bxh4 {[%clk 0:02:11.8]} 15. f4
{[%clk 0:02:11.3]} 15... O-O {[%clk 0:02:11.4]} 16. g5 {[%clk 0:01:40.2]} 16...
cxd4 {[%clk 0:01:48.3]} 17. Nxd4 {[%clk 0:01:23.1]} 17... f6 {[%clk 0:00:56.9]}
18. gxf6 {[%clk 0:01:16.4]} 18... gxf6 {[%clk 0:00:57.8]} 19. Nf3 {[%clk
0:00:56]} 19... fxe5 {[%clk 0:00:37.2]} 20. Nxh4 {[%clk 0:00:54.7]} 20... Kh8
{[%clk 0:00:31.7]} 21. Be3 {[%clk 0:00:43]} 21... Qc4 {[%clk 0:00:32.2]} 22. Qh5
{[%clk 0:00:09.2]} 22... Qe4+ {[%clk 0:00:31.6]} 23. Qf3 {[%clk 0:00:09.2]}
23... Qc2 {[%clk 0:00:18.7]} 24. Rf2 {[%clk 0:00:07]} 24... Qa4 {[%clk
0:00:18.1]} 25. Rg1 {[%clk 0:00:06.2]} 25... Rf6 {[%clk 0:00:18.3]} 26. Qh3
{[%clk 0:00:04.2]} 26... Qe4+ {[%clk 0:00:16.3]} 27. Qf3 {[%clk 0:00:04]} 27...
Qc4 {[%clk 0:00:16.8]} 28. Qh3 {[%clk 0:00:03.9]} 28... Qe4+ {[%clk 0:00:16.2]}
29. Qg2 {[%clk 0:00:04.2]} 29... Qxg2+ {[%clk 0:00:07.2]} 30. Nxg2 {[%clk
0:00:04.3]} 30... Raf8 {[%clk 0:00:05]} 31. Rgf1 {[%clk 0:00:04]} 31... e4
{[%clk 0:00:03.9]} 32. Bd4 {[%clk 0:00:04.1]} 32... e5 {[%clk 0:00:04.6]} 33.
fxe5 {[%clk 0:00:03.9]} 33... Rxf2 {[%clk 0:00:05.5]} 34. Rxf2 {[%clk
0:00:04.3]} 34... Rxf2 {[%clk 0:00:06.4]} 35. Bxf2 {[%clk 0:00:05]} 35... b6
{[%clk 0:00:06.3]} 36. Bd4 {[%clk 0:00:04.9]} 36... Kg8 {[%clk 0:00:07]} 37. Ne3
{[%clk 0:00:05.3]} 37... Kf7 {[%clk 0:00:07]} 38. Nxd5 {[%clk 0:00:05.8]} 38...
Ke6 {[%clk 0:00:07.9]} 39. Ne3 {[%clk 0:00:05.7]} 39... Nxe5 {[%clk 0:00:08.3]}
40. Bxe5 {[%clk 0:00:05]} 40... Kxe5 {[%clk 0:00:09.2]} 1-0

[Event "*** Titled Tuesday Blitz"]
[Site "Chess.com"]
[Date "2020.11.10"]
[Round "3"]
[White "Hasangatin_Ramil"]
[Black "Loy_Konstantin"]
[Result "0-1"]
[WhiteElo "2556"]
[BlackElo "2395"]
[TimeControl "180+1"]
[EndTime "10:32:03 PST"]
[Termination "Loy_Konstantin won by checkmate"]

1. e4 {[%clk 0:03:00.9]} 1... c5 {[%clk 0:02:58]} 2. Nf3 {[%clk 0:02:59]} 2...
d6 {[%clk 0:02:58]} 3. d4 {[%clk 0:02:58.7]} 3... cxd4 {[%clk 0:02:58.5]} 4.
Qxd4 {[%clk 0:02:59.6]} 4... Nc6 {[%clk 0:02:56.8]} 5. Bb5 {[%clk 0:02:59.5]}
5... Bd7 {[%clk 0:02:57.3]} 6. Bxc6 {[%clk 0:02:59.8]} 6... Bxc6 {[%clk
0:02:58.2]} 7. Nc3 {[%clk 0:03:00.2]} 7... h6 {[%clk 0:02:58.5]} 8. O-O {[%clk
0:02:59.1]} 8... e5 {[%clk 0:02:58.4]} 9. Qd3 {[%clk 0:02:59.1]} 9... Nf6 {[%clk
0:02:58.8]} 10. Nd2 {[%clk 0:02:55.4]} 10... Be7 {[%clk 0:02:56]} 11. Nc4 {[%clk
0:02:55.8]} 11... Qc7 {[%clk 0:02:48.9]} 12. Ne3 {[%clk 0:02:55.4]} 12... O-O
{[%clk 0:02:44.9]} 13. b3 {[%clk 0:02:52.9]} 13... Rfd8 {[%clk 0:02:21.4]} 14.
Bb2 {[%clk 0:02:52.9]} 14... a6 {[%clk 0:02:19.1]} 15. a4 {[%clk 0:02:52.3]}
15... b5 {[%clk 0:02:09]} 16. axb5 {[%clk 0:02:48.6]} 16... axb5 {[%clk
0:02:07.4]} 17. Ba3 {[%clk 0:02:45.4]} 17... Rxa3 {[%clk 0:01:56.4]} 18. Rxa3
{[%clk 0:02:46.3]} 18... b4 {[%clk 0:01:56.5]} 19. Ra6 {[%clk 0:02:39.2]} 19...
bxc3 {[%clk 0:01:29.5]} 20. Qxc3 {[%clk 0:02:40.1]} 20... Rc8 {[%clk 0:01:26.6]}
21. f3 {[%clk 0:02:35.4]} 21... d5 {[%clk 0:00:56]} 22. exd5 {[%clk 0:02:33.4]}
22... Nxd5 {[%clk 0:00:20.4]} 23. Nxd5 {[%clk 0:02:32.8]} 23... Bxd5 {[%clk
0:00:20]} 24. Qxc7 {[%clk 0:02:32.1]} 24... Rxc7 {[%clk 0:00:20.9]} 25. c4
{[%clk 0:02:29.1]} 25... Be6 {[%clk 0:00:20.7]} 26. Rd1 {[%clk 0:02:20]} 26...
Bc5+ {[%clk 0:00:20.1]} 27. Kf1 {[%clk 0:02:19.3]} 27... Bd4 {[%clk 0:00:20.4]}
28. Ke2 {[%clk 0:02:03.5]} 28... Kh7 {[%clk 0:00:20.3]} 29. g4 {[%clk
0:02:01.4]} 29... Rb7 {[%clk 0:00:19.7]} 30. Rd3 {[%clk 0:01:59.1]} 30... Rxb3
{[%clk 0:00:16.9]} 31. Rxb3 {[%clk 0:01:52.1]} 31... Bxc4+ {[%clk 0:00:16.3]}
32. Kd2 {[%clk 0:01:52.3]} 32... Bxa6 {[%clk 0:00:14.9]} 33. h4 {[%clk
0:01:50.5]} 33... Bc4 {[%clk 0:00:13.7]} 34. Rb4 {[%clk 0:01:49.9]} 34... Bd5
{[%clk 0:00:13.4]} 35. Ke2 {[%clk 0:01:50.2]} 35... Be6 {[%clk 0:00:12.7]} 36.
h5 {[%clk 0:01:50]} 36... g6 {[%clk 0:00:12.2]} 37. hxg6+ {[%clk 0:01:49.4]}
37... Kxg6 {[%clk 0:00:13.1]} 38. Rb8 {[%clk 0:01:47.4]} 38... Kg5 {[%clk
0:00:10.1]} 39. Rh8 {[%clk 0:01:47.3]} 39... Bc4+ {[%clk 0:00:09.4]} 40. Kd2
{[%clk 0:01:40.8]} 40... Kf4 {[%clk 0:00:08.9]} 41. Rxh6 {[%clk 0:01:39.2]}
41... Kxf3 {[%clk 0:00:09]} 42. Rh8 {[%clk 0:01:35.4]} 42... Kxg4 {[%clk
0:00:08.7]} 43. Rg8+ {[%clk 0:01:36.2]} 43... Kf5 {[%clk 0:00:08.4]} 44. Ke1
{[%clk 0:01:37]} 44... Bd5 {[%clk 0:00:07.9]} 45. Rh8 {[%clk 0:01:37.2]} 45...
Be4 {[%clk 0:00:08.1]} 46. Rh4 {[%clk 0:01:36.9]} 46... Bd5 {[%clk 0:00:06.4]}
47. Kd2 {[%clk 0:01:35.6]} 47... Ke6 {[%clk 0:00:06]} 48. Rh6+ {[%clk
0:01:35.3]} 48... f6 {[%clk 0:00:06.3]} 49. Kd3 {[%clk 0:01:35.2]} 49... Bc6
{[%clk 0:00:05.4]} 50. Rh8 {[%clk 0:01:33]} 50... Bb5+ {[%clk 0:00:05.6]} 51.
Ke4 {[%clk 0:01:32.3]} 51... f5+ {[%clk 0:00:05.5]} 52. Kf3 {[%clk 0:01:32.7]}
52... Bc6+ {[%clk 0:00:05.4]} 53. Ke2 {[%clk 0:01:32.3]} 53... f4 {[%clk
0:00:05.5]} 54. Rh6+ {[%clk 0:01:32.5]} 54... Kd5 {[%clk 0:00:05.4]} 55. Rh8
{[%clk 0:01:31.5]} 55... Ke4 {[%clk 0:00:04.9]} 56. Rh4 {[%clk 0:01:30.5]} 56...
Bb5+ {[%clk 0:00:05.1]} 57. Kd2 {[%clk 0:01:30.4]} 57... Bc4 {[%clk 0:00:05.7]}
58. Rg4 {[%clk 0:01:29.9]} 58... Be3+ {[%clk 0:00:06.1]} 59. Kc3 {[%clk
0:01:29.4]} 59... Be2 {[%clk 0:00:04.8]} 60. Rg2 {[%clk 0:01:28.9]} 60... f3
{[%clk 0:00:04.7]} 61. Rg4+ {[%clk 0:01:29.4]} 61... Kf5 {[%clk 0:00:04]} 62.
Rh4 {[%clk 0:01:29.5]} 62... f2 {[%clk 0:00:03.8]} 63. Rh1 {[%clk 0:01:29.6]}
63... f1=Q {[%clk 0:00:03.8]} 64. Rxf1+ {[%clk 0:01:30.5]} 64... Bxf1 {[%clk
0:00:04.6]} 65. Kc2 {[%clk 0:01:30.8]} 65... Kf4 {[%clk 0:00:04.7]} 66. Kd1
{[%clk 0:01:31.7]} 66... Kf3 {[%clk 0:00:05.1]} 67. Ke1 {[%clk 0:01:32.3]} 67...
Bg2 {[%clk 0:00:04.9]} 68. Kd1 {[%clk 0:01:33.2]} 68... Bf2 {[%clk 0:00:04.8]}
69. Kd2 {[%clk 0:01:33.4]} 69... e4 {[%clk 0:00:05.7]} 70. Kc3 {[%clk
0:01:32.9]} 70... e3 {[%clk 0:00:06.6]} 71. Kc4 {[%clk 0:01:33.8]} 71... e2
{[%clk 0:00:06.9]} 72. Kd5 {[%clk 0:01:34.7]} 72... e1=Q {[%clk 0:00:07.1]} 73.
Kd6 {[%clk 0:01:34.2]} 73... Kf4 {[%clk 0:00:06.8]} 74. Kd7 {[%clk 0:01:35.1]}
74... Qd2+ {[%clk 0:00:06.6]} 75. Kc8 {[%clk 0:01:36]} 75... Qc3+ {[%clk
0:00:05]} 76. Kd7 {[%clk 0:01:35.1]} 76... Bh3+ {[%clk 0:00:04.8]} 77. Kd6
{[%clk 0:01:36]} 77... Qc5# {[%clk 0:00:04.1]} 0-1

[Event "*** Titled Tuesday Blitz"]
[Site "Chess.com"]
[Date "2020.11.10"]
[Round "3"]
[White "IceBelka"]
[Black "Vsevolod_Ovchinnikov"]
[Result "0-1"]
[WhiteElo "2288"]
[BlackElo "2525"]
[TimeControl "180+1"]
[EndTime "10:32:05 PST"]
[Termination "Vsevolod_Ovchinnikov won by resignation"]

1. e4 {[%clk 0:03:00.9]} 1... g6 {[%clk 0:03:00.1]} 2. d4 {[%clk 0:02:59.7]}
2... Bg7 {[%clk 0:03:00.7]} 3. Nc3 {[%clk 0:02:59.6]} 3... a6 {[%clk 0:03:01.2]}
4. h4 {[%clk 0:02:45.3]} 4... h5 {[%clk 0:02:52.3]} 5. Be3 {[%clk 0:02:41.5]}
5... b5 {[%clk 0:02:51.2]} 6. Qd2 {[%clk 0:02:40.2]} 6... Bb7 {[%clk 0:02:48.8]}
7. f3 {[%clk 0:02:40.2]} 7... d6 {[%clk 0:02:47.2]} 8. O-O-O {[%clk 0:02:38.8]}
8... Nd7 {[%clk 0:02:46.5]} 9. Nh3 {[%clk 0:02:37.8]} 9... Rc8 {[%clk 0:02:44]}
10. Ng5 {[%clk 0:02:36]} 10... c5 {[%clk 0:02:44.4]} 11. e5 {[%clk 0:02:24.2]}
11... dxe5 {[%clk 0:02:18.6]} 12. dxe5 {[%clk 0:02:19.2]} 12... Bxe5 {[%clk
0:01:47.7]} 13. Nxf7 {[%clk 0:02:00.7]} 13... Kxf7 {[%clk 0:01:47.4]} 14. Qxd7
{[%clk 0:01:59.9]} 14... Qc7 {[%clk 0:01:07]} 15. Qxc7 {[%clk 0:01:40.5]} 15...
Rxc7 {[%clk 0:01:07.9]} 16. a4 {[%clk 0:01:37.8]} 16... Bxc3 {[%clk 0:01:00.2]}
17. bxc3 {[%clk 0:01:37.1]} 17... c4 {[%clk 0:01:00.5]} 18. Rd8 {[%clk 0:01:27]}
18... Rc8 {[%clk 0:00:55.6]} 19. Rd7 {[%clk 0:01:26]} 19... Bc6 {[%clk 0:00:55]}
20. Ra7 {[%clk 0:01:24.2]} 20... Ra8 {[%clk 0:00:54.8]} 21. Rc7 {[%clk 0:01:22]}
21... Bd5 {[%clk 0:00:40.2]} 22. Bc5 {[%clk 0:01:20.1]} 22... Be6 {[%clk
0:00:32.8]} 23. g3 {[%clk 0:00:57.1]} 23... Rc8 {[%clk 0:00:31.8]} 24. Rxc8
{[%clk 0:00:56]} 24... Bxc8 {[%clk 0:00:32.7]} 25. Bg2 {[%clk 0:00:56.1]} 25...
Nf6 {[%clk 0:00:28.7]} 26. Re1 {[%clk 0:00:51.4]} 26... Re8 {[%clk 0:00:22.8]}
27. f4 {[%clk 0:00:49.5]} 27... Bd7 {[%clk 0:00:19.4]} 28. Kb2 {[%clk
0:00:45.5]} 28... e6 {[%clk 0:00:16.7]} 29. Rd1 {[%clk 0:00:39.2]} 29... Rc8
{[%clk 0:00:15.5]} 30. Bd4 {[%clk 0:00:33.2]} 30... Bc6 {[%clk 0:00:15.7]} 31.
Bxc6 {[%clk 0:00:27.3]} 31... Rxc6 {[%clk 0:00:16.6]} 32. Bxf6 {[%clk
0:00:26.9]} 32... Kxf6 {[%clk 0:00:17.5]} 33. Ka3 {[%clk 0:00:25.8]} 33... bxa4
{[%clk 0:00:16.7]} 34. Kxa4 {[%clk 0:00:15.7]} 34... Kf5 {[%clk 0:00:17]} 35.
Rd4 {[%clk 0:00:15.7]} 35... Kg4 {[%clk 0:00:16.8]} 36. f5+ {[%clk 0:00:15.8]}
36... Kxf5 {[%clk 0:00:16.3]} 37. Rf4+ {[%clk 0:00:14]} 37... Ke5 {[%clk
0:00:16]} 38. Kb4 {[%clk 0:00:14.3]} 38... Kd5 {[%clk 0:00:16.5]} 39. Rf6 {[%clk
0:00:13.2]} 39... e5 {[%clk 0:00:12.7]} 40. Rf8 {[%clk 0:00:13.4]} 40... Ke4
{[%clk 0:00:11.7]} 41. Ka5 {[%clk 0:00:07.4]} 41... Ke3 {[%clk 0:00:11.5]} 42.
Re8 {[%clk 0:00:05.9]} 42... e4 {[%clk 0:00:11.8]} 43. Kb4 {[%clk 0:00:05.9]}
43... Kf3 {[%clk 0:00:11.9]} 0-1

[Event "*** Titled Tuesday Blitz"]
[Site "Chess.com"]
[Date "2020.11.10"]
[Round "3"]
[White "ErikBlomqvist"]
[Black "eCztery"]
[Result "0-1"]
[WhiteElo "2489"]
[BlackElo "2290"]
[TimeControl "180+1"]
[EndTime "10:32:05 PST"]
[Termination "eCztery won on time"]

1. e4 {[%clk 0:03:00.9]} 1... c5 {[%clk 0:02:58.4]} 2. Nf3 {[%clk 0:03:00.2]}
2... g6 {[%clk 0:02:57.5]} 3. d4 {[%clk 0:02:56.4]} 3... cxd4 {[%clk 0:02:58.4]}
4. Qxd4 {[%clk 0:02:56.9]} 4... Nf6 {[%clk 0:02:58]} 5. e5 {[%clk 0:02:56.2]}
5... Nc6 {[%clk 0:02:55.5]} 6. Qf4 {[%clk 0:02:56.2]} 6... Nd5 {[%clk
0:02:54.1]} 7. Qe4 {[%clk 0:02:56.5]} 7... Nc7 {[%clk 0:02:52.1]} 8. Nc3 {[%clk
0:02:51.6]} 8... Bg7 {[%clk 0:02:46.2]} 9. Bf4 {[%clk 0:02:50.5]} 9... O-O
{[%clk 0:02:39.9]} 10. O-O-O {[%clk 0:02:50]} 10... Ne6 {[%clk 0:02:29.4]} 11.
Bg3 {[%clk 0:02:47.8]} 11... Qa5 {[%clk 0:02:27]} 12. Rd5 {[%clk 0:02:39.7]}
12... Nc5 {[%clk 0:02:15]} 13. Qe3 {[%clk 0:02:27.3]} 13... b6 {[%clk
0:02:05.5]} 14. Bc4 {[%clk 0:02:16.9]} 14... Bb7 {[%clk 0:01:53.9]} 15. a3
{[%clk 0:02:02]} 15... Rac8 {[%clk 0:01:42.3]} 16. Rd2 {[%clk 0:01:45.7]} 16...
Na4 {[%clk 0:01:17.7]} 17. Nxa4 {[%clk 0:01:42.5]} 17... Qxa4 {[%clk 0:01:18.6]}
18. Bb3 {[%clk 0:01:37]} 18... Qb5 {[%clk 0:01:12.8]} 19. a4 {[%clk 0:01:25.1]}
19... Qb4 {[%clk 0:01:03.3]} 20. Rxd7 {[%clk 0:01:21.4]} 20... Na5 {[%clk
0:00:58.1]} 21. Kb1 {[%clk 0:01:12]} 21... e6 {[%clk 0:00:53.9]} 22. Rhd1 {[%clk
0:01:05.8]} 22... h6 {[%clk 0:00:26.3]} 23. h4 {[%clk 0:01:04]} 23... Nxb3
{[%clk 0:00:19.3]} 24. Rxb7 {[%clk 0:00:37.2]} 24... Nc5 {[%clk 0:00:16.3]} 25.
Rd4 {[%clk 0:00:26.4]} 25... Qa5 {[%clk 0:00:13.3]} 26. Re7 {[%clk 0:00:18.5]}
26... Nxa4 {[%clk 0:00:10.6]} 27. Qa3 {[%clk 0:00:17.8]} 27... Qb5 {[%clk
0:00:08]} 28. Qxa4 {[%clk 0:00:14.8]} 28... Qf1+ {[%clk 0:00:08.1]} 29. Ka2
{[%clk 0:00:14.6]} 29... Rc5 {[%clk 0:00:07.8]} 30. Qa3 {[%clk 0:00:12]} 30...
Ra5 {[%clk 0:00:07.5]} 31. Ra4 {[%clk 0:00:12.2]} 31... Rc5 {[%clk 0:00:05.8]}
32. Qd3 {[%clk 0:00:07.2]} 32... Qc1 {[%clk 0:00:04.8]} 33. Raxa7 {[%clk
0:00:05.8]} 33... Rxc2 {[%clk 0:00:04.6]} 34. Qb3 {[%clk 0:00:04.6]} 34... Qd1
{[%clk 0:00:03.4]} 35. Red7 {[%clk 0:00:04]} 35... Qc1 {[%clk 0:00:02.8]} 36.
Rdb7 {[%clk 0:00:02.2]} 36... Rc5 {[%clk 0:00:03.7]} 37. Rxb6 {[%clk 0:00:02.2]}
37... Qd2 {[%clk 0:00:03.4]} 38. Rb8 {[%clk 0:00:02.2]} 38... Qd5 {[%clk
0:00:03]} 0-1

[Event "*** Titled Tuesday Blitz"]
[Site "Chess.com"]
[Date "2020.11.10"]
[Round "3"]
[White "Zhani-Z"]
[Black "Chess2019Player"]
[Result "1-0"]
[WhiteElo "2514"]
[BlackElo "2260"]
[TimeControl "180+1"]
[EndTime "10:32:05 PST"]
[Termination "Zhani-Z won on time"]

1. e4 {[%clk 0:03:00.9]} 1... e6 {[%clk 0:02:58]} 2. d4 {[%clk 0:03:00.6]} 2...
d5 {[%clk 0:02:56.2]} 3. Nd2 {[%clk 0:02:59.5]} 3... Be7 {[%clk 0:02:51.7]} 4.
e5 {[%clk 0:02:53.9]} 4... c5 {[%clk 0:02:50.3]} 5. c3 {[%clk 0:02:54.5]} 5...
Nc6 {[%clk 0:02:49.3]} 6. Bd3 {[%clk 0:02:54.6]} 6... cxd4 {[%clk 0:02:38.9]} 7.
cxd4 {[%clk 0:02:54.7]} 7... Qb6 {[%clk 0:02:39.8]} 8. Ndf3 {[%clk 0:02:46.1]}
8... f6 {[%clk 0:02:39.6]} 9. exf6 {[%clk 0:02:45.4]} 9... Nxf6 {[%clk
0:02:40.5]} 10. Ne2 {[%clk 0:02:45.2]} 10... O-O {[%clk 0:02:38.3]} 11. O-O
{[%clk 0:02:45.5]} 11... Ne4 {[%clk 0:02:22.5]} 12. Ng3 {[%clk 0:02:30.9]} 12...
e5 {[%clk 0:02:03.8]} 13. Nxe4 {[%clk 0:01:47.3]} 13... dxe4 {[%clk 0:02:01.3]}
14. Bxe4 {[%clk 0:01:47.3]} 14... exd4 {[%clk 0:01:52]} 15. a3 {[%clk
0:01:46.2]} 15... Bg4 {[%clk 0:01:33.3]} 16. Qd3 {[%clk 0:01:45.4]} 16... h6
{[%clk 0:01:25.5]} 17. Bd2 {[%clk 0:01:43.5]} 17... Rad8 {[%clk 0:01:23.8]} 18.
Rfe1 {[%clk 0:01:37.3]} 18... Bf6 {[%clk 0:01:18.7]} 19. b4 {[%clk 0:01:30.8]}
19... Kh8 {[%clk 0:01:08.5]} 20. Rac1 {[%clk 0:01:25.9]} 20... Bxf3 {[%clk
0:00:54.7]} 21. Qxf3 {[%clk 0:01:24.7]} 21... Ne5 {[%clk 0:00:54.4]} 22. Qh3
{[%clk 0:01:16.7]} 22... Be7 {[%clk 0:00:33.3]} 23. f4 {[%clk 0:00:35.9]} 23...
Qf6 {[%clk 0:00:16.3]} 24. Rf1 {[%clk 0:00:30.4]} 24... Nc6 {[%clk 0:00:12.9]}
25. Bd3 {[%clk 0:00:29.2]} 25... Bd6 {[%clk 0:00:09.6]} 26. Qf3 {[%clk
0:00:23.4]} 26... Bb8 {[%clk 0:00:06.9]} 27. Qe4 {[%clk 0:00:23.1]} 27... g6
{[%clk 0:00:04.9]} 28. Qxg6 {[%clk 0:00:22.8]} 28... Qxg6 {[%clk 0:00:05.8]} 29.
Bxg6 {[%clk 0:00:22]} 29... Ne7 {[%clk 0:00:06]} 30. Bd3 {[%clk 0:00:21.6]}
30... Nd5 {[%clk 0:00:05]} 31. g3 {[%clk 0:00:22]} 31... Ne3 {[%clk 0:00:04.4]}
32. Rfe1 {[%clk 0:00:21.8]} 32... Nd5 {[%clk 0:00:04]} 33. Rc4 {[%clk
0:00:18.6]} 33... a6 {[%clk 0:00:03.7]} 34. Kg2 {[%clk 0:00:17.5]} 34... Nf6
{[%clk 0:00:03]} 35. Rc5 {[%clk 0:00:15.2]} 35... Nd5 {[%clk 0:00:02.8]} 36. Rc4
{[%clk 0:00:13.2]} 36... Nf6 {[%clk 0:00:01.8]} 37. Rec1 {[%clk 0:00:12.8]}
37... Ba7 {[%clk 0:00:01.8]} 38. Kf3 {[%clk 0:00:12.9]} 38... Rd7 {[%clk
0:00:01.3]} 39. Rc8 {[%clk 0:00:12.3]} 1-0